[Event "SVK Extraliga 2019-20"]
[Site "Slovakia"]
[Date "2020.09.05"]
[Round "10.6"]
[White "Cibickova, Zuzana"]
[Black "Lisko, Frantisek"]
[Result "0-1"]
[ECO "B40"]
[WhiteElo "2256"]
[BlackElo "2223"]
[Annotator "ChessBase"]
[PlyCount "100"]
[EventDate "2019.10.19"]
[EventType "team-tourn"]
[EventCountry "SVK"]
[SourceTitle "playchess.com"]
[Source "ChessBase"]
[SourceQuality "1"]
[WhiteTeam "Komarno"]
[BlackTeam "Dunajov"]
[TimeControl "40/5400+30:1800+30"]

1. e4 {[%emt 0:04:09]} c5 {[%emt 0:00:00]} 2. Nf3 {[%emt 0:00:28]} e6 {[%emt 0:00:00]} 3. d4 {[%emt 0:01:11]} cxd4 {[%emt 0:00:00]} 4. Nxd4 {[%emt 0:00:04]} Nf6 {[%emt 0:00:02]} 5. Nc3 {[%emt 0:00:09]} Nc6 {[%emt 0:00:06]} 6. g3 {[%emt 0:11:07]} Bb4 {[%emt 0:04:50]} 7. Bg2 {[%emt 0:03:52]} d6 {[%emt 0:10:09]} 8. Nde2 {[%emt 0:06:20]} O-O {[%emt 0:03:15]} 9. O-O {[%emt 0:00:18]} a6 {[%emt 0:02:06]} 10. h3 {[%emt 0:13:04]} Qc7 {[%emt 0:05:18]} 11. a3 {[%emt 0:05:25]} Bc5 {[%emt 0:00:59]} 12. Bg5 {[%emt 0:00:19]} Nd7 {[%emt 0:01:08]} 13. b4 {[%emt 0:01:44]} Bb6 {[%emt 0:10:53]} 14. b5 {[%emt 0:02:15]} axb5 {[%emt 0:01:54]} 15. Nxb5 {[%emt 0:01:30]} Qb8 {[%emt 0:01:43]} 16. Nxd6 {[%emt 0:09:48]} Nde5 {[%emt 0:03:37]} 17. Nxc8 {[%emt 0:16:29]} Rxc8 {[%emt 0:00:47]} 18. c3 {[%emt 0:01:31]} Qa7 {[%emt 0:05:29]} 19. Ra2 {[%emt 0:12:53]} h6 {[%emt 0:03:00]} 20. Bc1 {[%emt 0:01:58]} Nc4 {[%emt 0:13:26]} 21. Nf4 {[%emt 0:02:19]} Rd8 {[%emt 0:02:01]} 22. Qe2 {[%emt 0:00:07]} Qa4 {[%emt 0:01:43]} 23. Nh5 {[%emt 0:02:16]} N6e5 {[%emt 0:01:35]} 24. Bf4 {[%emt 0:00:34]} Ra5 {[%emt 0:02:04]} 25. Rb1 {[%emt 0:01:39]} Nd3 {[%emt 0:11:08]} 26. Kh2 {[%emt 0:00:03]} g5 {[%emt 0:04:51]} 27. Bc1 {[%emt 0:01:21]} Bxf2 {[%emt 0:01:10]} 28. Nf6+ {[%emt 0:00:13]} Kg7 {[%emt 0:00:45]} 29. Ng4 {[%emt 0:00:39]} Be1 {[%emt 0:01:52]} 30. Be3 Bxc3 {[%emt 0:01:20]} 31. Rxb7 {[%emt 0:01:06]} Nxe3 {[%emt 0:04:53]} 32. Nxe3 Ra7 {[%emt 0:01:41]} 33. Rxa7 {[%emt 0:01:02]} Qxa7 {[%emt 0:00:01]} 34. Rc2 {[%emt 0:00:35]} Qxa3 {[%emt 0:00:21]} 35. Qh5 {[%emt 0:00:28]} Qb3 {[%emt 0:01:34]} 36. Re2 {[%emt 0:00:32]} Bd4 {[%emt 0:00:48]} 37. Nf1 {[%emt 0:00:30]} Qd1 {[%emt 0:00:35]} 38. h4 {[%emt 0:00:25]} Rh8 {[%emt 0:01:13]} 39. Qf3 {[%emt 0:00:26]} Ne5 {[%emt 0:00:39]} 40. Qh5 {[%emt 0:00:22]} Bc5 {[%emt 0:00:29]} 41. Bh3 {[%emt 0:05:39]} f6 {[%emt 0:08:13]} 42. Kg2 {[%emt 0:02:28]} Rb8 {[%emt 0:04:49]} 43. Bxe6 {[%emt 0:08:48]} Rb2 {[%emt 0:04:20]} 44. Rxb2 {[%emt 0:02:08]} Qxh5 {[%emt 0:00:17]} 45. Nh2 {[%emt 0:01:34]} Qd1 {[%emt 0:03:19]} 46. hxg5 {[%emt 0:04:36]} fxg5 {[%emt 0:00:31]} 47. Kh3 {[%emt 0:08:29]} h5 {[%emt 0:00:34]} 48. Rb7+ {[%emt 0:00:35]} Kf6 {[%emt 0:02:14]} 49. Bf5 {[%emt 0:00:10]} g4+ {[%emt 0:01:51]} 50. Kh4 {[%emt 0:00:06]} Qd2 {[%emt 0:00:45]} 0-1

[Event "SVK Extraliga 2019-20"]
[Site "Slovakia"]
[Date "2020.09.05"]
[Round "10.6"]
[White "Striskova, Lucia"]
[Black "Sepesi, Samuel"]
[Result "0-1"]
[ECO "B56"]
[WhiteElo "1806"]
[BlackElo "2147"]
[Annotator "ChessBase"]
[PlyCount "36"]
[EventDate "2019.10.19"]
[EventType "team-tourn"]
[EventCountry "SVK"]
[SourceTitle "playchess.com"]
[Source "ChessBase"]
[SourceQuality "1"]
[BlackTeam "Snina"]
[TimeControl "40/5400+30:1800+30"]

1. e4 {[%emt 0:00:00]} c5 {[%emt 0:00:25]} 2. Nf3 {[%emt 0:00:00]} d6 {[%emt 0:00:31]} 3. d4 {[%emt 0:00:29]} cxd4 {[%emt 0:00:06]} 4. Nxd4 {[%emt 0:00:07]} Nf6 {[%emt 0:00:07]} 5. Nc3 {[%emt 0:00:22]} Nc6 {[%emt 0:00:06]} 6. Be3 {[%emt 0:01:16]} Ng4 {[%emt 0:00:53]} 7. Nxc6 {[%emt 0:05:21]} bxc6 {[%emt 0:03:38]} 8. Qd2 {[%emt 0:00:15]} Nxe3 {[%emt 0:01:13]} 9. Qxe3 {[%emt 0:02:05]} Qb6 {[%emt 0:01:50]} 10. Qf3 {[%emt 0:15:11]} Be6 {[%emt 0:04:16]} 11. Be2 {[%emt 0:00:38]} g6 {[%emt 0:04:09]} 12. O-O {[%emt 0:00:28]} Bg7 {[%emt 0:00:08]} 13. Rab1 {[%emt 0:05:38]} O-O {[%emt 0:00:13]} 14. b3 {[%emt 0:00:48]} Qc5 {[%emt 0:06:52]} 15. Na4 {[%emt 0:02:27]} Qxc2 {[%emt 0:01:07]} 16. Rfc1 {[%emt 0:03:21]} Qxa2 {[%emt 0:00:43]} 17. Nc3 {[%emt 0:01:02]} Bxc3 {[%emt 0:01:49]} 18. Qxc3 {[%emt 0:00:16]} Qxe2 {[%emt 0:00:12]} 0-1

[Event "SVK Extraliga 2019-20"]
[Site "Slovakia"]
[Date "2020.09.05"]
[Round "10.7"]
[White "Danada, Tomas"]
[Black "Veres, Andrej"]
[Result "1-0"]
[ECO "A13"]
[WhiteElo "2323"]
[BlackElo "2229"]
[Annotator "ChessBase"]
[PlyCount "81"]
[EventDate "2019.10.19"]
[EventType "team-tourn"]
[EventCountry "SVK"]
[SourceTitle "playchess.com"]
[Source "ChessBase"]
[SourceQuality "1"]
[WhiteTeam "Prakovce"]
[BlackTeam "Dubnica"]
[TimeControl "40/5400+30:1800+30"]

1. Nf3 {[%emt 0:00:00]} Nf6 {[%emt 0:00:26]} 2. c4 {[%emt 0:00:00]} e6 {[%emt 0:00:42]} 3. g3 {[%emt 0:00:33]} d5 {[%emt 0:00:56]} 4. Bg2 {[%emt 0:00:12]} dxc4 {[%emt 0:07:33]} 5. Qa4+ {[%emt 0:02:35]} Nbd7 {[%emt 0:02:00]} 6. O-O {[%emt 0:01:16]} a6 {[%emt 0:02:26]} 7. Qxc4 {[%emt 0:00:10]} b5 {[%emt 0:01:01]} 8. Qc2 {[%emt 0:00:03]} Bb7 {[%emt 0:00:43]} 9. b3 {[%emt 0:00:44]} c5 {[%emt 0:05:48]} 10. Bb2 {[%emt 0:01:09]} Be7 {[%emt 0:01:09]} 11. d3 {[%emt 0:00:25]} O-O {[%emt 0:01:08]} 12. Nbd2 {[%emt 0:00:07]} Rc8 {[%emt 0:01:10]} 13. Rac1 {[%emt 0:01:50]} Qb6 {[%emt 0:08:14]} 14. Qb1 {[%emt 0:01:29]} Rfd8 {[%emt 0:03:55]} 15. Rfd1 {[%emt 0:03:32]} Qa7 {[%emt 0:14:36]} 16. e4 {[%emt 0:04:15]} Qa8 {[%emt 0:04:00]} 17. h4 {[%emt 0:04:49]} Ne8 {[%emt 0:07:43]} 18. e5 {[%emt 0:04:41]} Nb6 {[%emt 0:03:22]} 19. Ne1 {[%emt 0:03:48]} Bxg2 {[%emt 0:03:28]} 20. Nxg2 {[%emt 0:00:07]} a5 {[%emt 0:01:07]} 21. Ne3 {[%emt 0:03:36]} Nc7 {[%emt 0:08:05]} 22. h5 {[%emt 0:05:38]} Ncd5 {[%emt 0:02:09]} 23. Ng4 {[%emt 0:00:24]} h6 {[%emt 0:01:44]} 24. Ne4 {[%emt 0:09:55]} a4 {[%emt 0:05:09]} 25. Ba1 {[%emt 0:06:07]} Nb4 {[%emt 0:04:29]} 26. Bc3 {[%emt 0:05:23]} axb3 {[%emt 0:03:16]} 27. axb3 {[%emt 0:01:08]} Na2 {[%emt 0:00:34]} 28. Rc2 {[%emt 0:04:00]} Nxc3 {[%emt 0:00:23]} 29. Rxc3 {[%emt 0:00:25]} c4 {[%emt 0:01:21]} 30. bxc4 {[%emt 0:01:13]} Na4 {[%emt 0:02:19]} 31. Rcc1 {[%emt 0:09:06]} Ba3 {[%emt 0:01:13]} 32. Nd6 {[%emt 0:07:58]} Bxd6 {[%emt 0:02:16]} 33. exd6 {[%emt 0:00:07]} Qf3 {[%emt 0:00:57]} 34. d7 {[%emt 0:10:33]} Rb8 {[%emt 0:00:09]} 35. Ne5 {[%emt 0:02:38]} Qb7 {[%emt 0:01:16]} 36. c5 {[%emt 0:00:01]} Qc7 {[%emt 0:00:27]} 37. Re1 {[%emt 0:04:10]} b4 {[%emt 0:00:44]} 38. d4 {[%emt 0:00:52]} Nc3 {[%emt 0:00:18]} 39. Qb3 {[%emt 0:00:20]} Nd5 {[%emt 0:00:09]} 40. c6 {[%emt 0:01:06]} Rb6 {[%emt 0:00:28]} 41. Rc5 {[%emt 0:33:16]} 1-0

[Event "SVK Extraliga 2019-20"]
[Site "Slovakia"]
[Date "2020.09.05"]
[Round "10.7"]
[White "Kravec, Patrik"]
[Black "Kapolkova, Greta"]
[Result "1-0"]
[ECO "A21"]
[WhiteElo "2126"]
[BlackElo "1567"]
[Annotator "NA"]
[PlyCount "73"]
[EventDate "2019.10.19"]
[EventType "team-tourn"]
[EventCountry "SVK"]
[SourceTitle "playchess.com"]
[Source "ChessBase"]
[SourceQuality "1"]
[WhiteTeam "Snina"]
[TimeControl "40/5400+30:1800+30"]

1. c4 {[%emt 0:02:49]} e5 {[%emt 0:00:22]} 2. Nc3 {[%emt 0:01:09]} Bc5 {[%emt 0:02:54]} 3. e3 {[%emt 0:00:41]} Nc6 {[%emt 0:01:32]} 4. g3 {[%emt 0:00:47]} d6 {[%emt 0:03:06]} 5. d3 {[%emt 0:02:05]} f5 {[%emt 0:03:33]} 6. Bg2 {[%emt 0:00:57]} Nf6 {[%emt 0:00:32]} 7. Nge2 {[%emt 0:03:29]} O-O {[%emt 0:03:40]} 8. O-O {[%emt 0:02:53]} Be6 {[%emt 0:02:49]} 9. d4 {[%emt 0:01:22]} exd4 {[%emt 0:15:57]} 10. exd4 {[%emt 0:00:09]} Bxd4 {[%emt 0:04:05]} 11. Nxd4 {[%emt 0:00:18]} Bxc4 {[%emt 0:00:22]} 12. Re1 {[%emt 0:03:51]} Qd7 {[%emt 0:00:37]} 13. Nxc6 {[%emt 0:01:59]} bxc6 {[%emt 0:00:23]} 14. Qa4 {[%emt 0:01:48]} Bb5 {[%emt 0:01:46]} 15. Nxb5 {[%emt 0:01:01]} cxb5 {[%emt 0:00:11]} 16. Qb3+ {[%emt 0:00:18]} d5 {[%emt 0:00:48]} 17. Be3 {[%emt 0:05:28]} c6 {[%emt 0:01:32]} 18. Rac1 {[%emt 0:01:56]} a6 {[%emt 0:03:02]} 19. Qc3 {[%emt 0:05:02]} Rac8 {[%emt 0:01:16]} 20. Qc5 {[%emt 0:04:31]} Ne4 {[%emt 0:04:58]} 21. Qa7 {[%emt 0:08:58]} Qxa7 {[%emt 0:00:34]} 22. Bxa7 {[%emt 0:00:07]} Rfe8 {[%emt 0:09:06]} 23. f3 {[%emt 0:06:26]} Nf6 {[%emt 0:01:51]} 24. Rxe8+ {[%emt 0:02:31]} Nxe8 {[%emt 0:00:42]} 25. f4 {[%emt 0:00:22]} Nf6 {[%emt 0:01:40]} 26. Bd4 {[%emt 0:02:28]} Ne4 {[%emt 0:00:24]} 27. Bxe4 {[%emt 0:01:24]} fxe4 {[%emt 0:00:44]} 28. b4 {[%emt 0:01:14]} g6 {[%emt 0:01:47]} 29. g4 {[%emt 0:03:45]} Kf7 {[%emt 0:03:15]} 30. f5 {[%emt 0:04:33]} g5 {[%emt 0:03:36]} 31. Rc3 {[%emt 0:02:50]} Rc7 {[%emt 0:06:01]} 32. Rh3 {[%emt 0:01:48]} Kg8 {[%emt 0:01:08]} 33. Rh5 {[%emt 0:04:55]} a5 {[%emt 0:02:52]} 34. a3 {[%emt 0:01:18]} axb4 {[%emt 0:00:48]} 35. axb4 {[%emt 0:00:05]} Re7 {[%emt 0:01:44]} 36. Rxg5+ {[%emt 0:00:25]} Kf8 {[%emt 0:00:11]} 37. Bc5 {[%emt 0:00:12]} 1-0

[Event "SVK Extraliga 2019-20"]
[Site "Slovakia"]
[Date "2020.09.05"]
[Round "10.7"]
[White "Hanko, Pavol"]
[Black "Gazik, Igor"]
[Result "1/2-1/2"]
[ECO "A41"]
[WhiteElo "2104"]
[BlackElo "2221"]
[Annotator "ChessBase"]
[PlyCount "47"]
[EventDate "2019.10.19"]
[EventType "team-tourn"]
[EventCountry "SVK"]
[SourceTitle "playchess.com"]
[Source "ChessBase"]
[SourceQuality "1"]
[WhiteTeam "Dunajov"]
[BlackTeam "Podhajska"]
[TimeControl "40/5400+30:1800+30"]

1. d4 {[%emt 0:00:00]} d6 {[%emt 0:02:45]} 2. Nf3 {[%emt 0:00:20]} Nd7 {[%emt 0:03:58]} 3. c4 {[%emt 0:04:11]} e5 {[%emt 0:01:11]} 4. e4 {[%emt 0:02:01]} g6 {[%emt 0:00:33]} 5. dxe5 {[%emt 0:02:51]} dxe5 {[%emt 0:00:06]} 6. Nc3 {[%emt 0:00:24]} c6 {[%emt 0:02:18]} 7. Be2 {[%emt 0:00:25]} Ngf6 {[%emt 0:00:36]} 8. O-O {[%emt 0:00:26]} Qc7 {[%emt 0:03:57]} 9. b3 {[%emt 0:11:33]} Bb4 {[%emt 0:05:34]} 10. Qc2 {[%emt 0:00:44]} b6 {[%emt 0:14:04]} 11. Bb2 {[%emt 0:07:21]} Bb7 {[%emt 0:06:03]} 12. a3 {[%emt 0:04:11]} Bxc3 {[%emt 0:02:39]} 13. Bxc3 {[%emt 0:00:28]} c5 {[%emt 0:01:24]} 14. Nxe5 {[%emt 0:08:31]} Nxe5 {[%emt 0:04:04]} 15. f4 {[%emt 0:01:31]} Bxe4 {[%emt 0:08:12]} 16. Qb2 {[%emt 0:07:34]} Ned7 {[%emt 0:07:47]} 17. Bxf6 {[%emt 0:07:30]} Nxf6 {[%emt 0:00:14]} 18. Qxf6 {[%emt 0:00:30]} O-O {[%emt 0:00:02]} 19. Bf3 {[%emt 0:00:36]} Rfe8 {[%emt 0:03:45]} 20. Bxe4 {[%emt 0:07:47]} Rxe4 {[%emt 0:05:54]} 21. Rae1 {[%emt 0:00:30]} Rae8 {[%emt 0:03:14]} 22. Rxe4 {[%emt 0:01:21]} Rxe4 {[%emt 0:00:05]} 23. Rd1 {[%emt 0:00:15]} Re8 {[%emt 0:00:13]} 24. h3 1/2-1/2

[Event "SVK Extraliga 2019-20"]
[Site "Slovakia"]
[Date "2020.09.05"]
[Round "10.7"]
[White "Nadzamova, Viktoria"]
[Black "Zetocha, Claudiu"]
[Result "1-0"]
[ECO "C95"]
[WhiteElo "1946"]
[BlackElo "2303"]
[Annotator "ChessBase"]
[PlyCount "112"]
[EventDate "2019.10.19"]
[EventType "team-tourn"]
[EventCountry "SVK"]
[SourceTitle "playchess.com"]
[Source "ChessBase"]
[SourceQuality "1"]
[WhiteTeam "Kosice"]
[BlackTeam "Slovan"]
[TimeControl "40/5400+30:1800+30"]

1. e4 {[%emt 0:00:00]} e5 {[%emt 0:00:29]} 2. Nf3 {[%emt 0:00:00]} Nc6 {[%emt 0:00:22]} 3. Bb5 {[%emt 0:00:00]} a6 {[%emt 0:00:53]} 4. Ba4 {[%emt 0:00:29]} Nf6 {[%emt 0:00:46]} 5. O-O {[%emt 0:03:00]} Be7 {[%emt 0:02:29]} 6. Re1 {[%emt 0:01:39]} b5 {[%emt 0:01:53]} 7. Bb3 {[%emt 0:00:27]} O-O {[%emt 0:00:15]} 8. c3 {[%emt 0:01:35]} d6 {[%emt 0:01:41]} 9. h3 {[%emt 0:02:30]} Nb8 {[%emt 0:01:56]} 10. d4 {[%emt 0:01:56]} Nbd7 {[%emt 0:00:35]} 11. Nbd2 {[%emt 0:03:09]} Bb7 {[%emt 0:05:06]} 12. a4 {[%emt 0:03:07]} h6 {[%emt 0:11:23]} 13. Nh4 {[%emt 0:27:01]} Nxe4 {[%emt 0:21:19]} 14. Ng6 {[%emt 0:00:28]} Nxd2 {[%emt 0:00:24]} 15. Bxd2 {[%emt 0:01:38]} Re8 {[%emt 0:02:12]} 16. Qh5 {[%emt 0:07:09]} Bg5 {[%emt 0:11:01]} 17. f4 {[%emt 0:16:50]} Nf6 {[%emt 0:14:30]} 18. Bxf7+ {[%emt 0:00:59]} Kxf7 {[%emt 0:00:31]} 19. Nxe5+ {[%emt 0:00:11]} Kg8 {[%emt 0:00:09]} 20. Qf7+ {[%emt 0:00:22]} Kh7 {[%emt 0:00:22]} 21. Qg6+ {[%emt 0:01:37]} Kg8 {[%emt 0:00:02]} 22. fxg5 {[%emt 0:17:10]} dxe5 {[%emt 0:01:43]} 23. gxf6 {[%emt 0:00:40]} Qxf6 {[%emt 0:00:19]} 24. Qxf6 {[%emt 0:00:16]} gxf6 {[%emt 0:00:06]} 25. dxe5 {[%emt 0:00:12]} f5 {[%emt 0:11:26]} 26. Bxh6 {[%emt 0:02:18]} Kf7 {[%emt 0:00:33]} 27. axb5 {[%emt 0:00:55]} axb5 {[%emt 0:00:04]} 28. Rxa8 {[%emt 0:01:03]} Bxa8 {[%emt 0:00:41]} 29. Bf4 {[%emt 0:01:32]} Ke6 {[%emt 0:00:33]} 30. Ra1 {[%emt 0:00:47]} Be4 {[%emt 0:01:29]} 31. Ra7 {[%emt 0:03:20]} Re7 {[%emt 0:00:54]} 32. Ra6+ {[%emt 0:01:03]} Kd5 {[%emt 0:02:57]} 33. Kf2 {[%emt 0:01:35]} Kc4 {[%emt 0:01:24]} 34. h4 {[%emt 0:01:23]} Kb3 {[%emt 0:00:39]} 35. h5 {[%emt 0:00:35]} c6 {[%emt 0:00:50]} 36. h6 {[%emt 0:00:31]} Bd5 {[%emt 0:00:35]} 37. Bg5 {[%emt 0:00:30]} Rh7 {[%emt 0:00:25]} 38. Ra8 {[%emt 0:00:32]} Kxb2 {[%emt 0:00:22]} 39. Bd2 {[%emt 0:00:24]} Kc2 {[%emt 0:00:07]} 40. Ke1 {[%emt 0:00:00]} Re7 {[%emt 0:00:00]} 41. Bg5 {[%emt 0:02:34]} Rh7 {[%emt 0:04:35]} 42. Re8 {[%emt 0:02:14]} Kxc3 {[%emt 0:12:57]} 43. Re7 {[%emt 0:00:39]} Rh8 {[%emt 0:01:48]} 44. h7 {[%emt 0:00:31]} Bg8 {[%emt 0:00:09]} 45. hxg8=Q {[%emt 0:01:32]} Rxg8 {[%emt 0:00:05]} 46. Bd2+ {[%emt 0:00:09]} Kd4 {[%emt 0:01:40]} 47. Bf4 {[%emt 0:08:05]} Rxg2 {[%emt 0:12:08]} 48. Rd7+ {[%emt 0:00:29]} Kc4 {[%emt 0:01:30]} 49. e6 {[%emt 0:01:20]} Rg4 {[%emt 0:00:19]} 50. Be3 {[%emt 0:04:22]} c5 {[%emt 0:03:05]} 51. e7 {[%emt 0:01:07]} Re4 {[%emt 0:00:02]} 52. Kd2 {[%emt 0:00:14]} b4 {[%emt 0:01:40]} 53. Rc7 {[%emt 0:02:13]} b3 {[%emt 0:01:04]} 54. Rxc5+ {[%emt 0:04:24]} Kb4 {[%emt 0:00:01]} 55. Rc8 {[%emt 0:00:08]} b2 {[%emt 0:02:23]} 56. e8=Q {[%emt 0:00:39]} b1=N+ {[%emt 0:00:08]} 1-0

[Event "SVK Extraliga 2019-20"]
[Site "Slovakia"]
[Date "2020.09.05"]
[Round "10.8"]
[White "Petran, Peter"]
[Black "Jurcisin, Imrich"]
[Result "1-0"]
[ECO "A00"]
[WhiteElo "2248"]
[BlackElo "2077"]
[Annotator "ChessBase"]
[PlyCount "65"]
[EventDate "2019.10.19"]
[EventType "team-tourn"]
[EventCountry "SVK"]
[SourceTitle "playchess.com"]
[Source "ChessBase"]
[SourceQuality "1"]
[WhiteTeam "Slovan"]
[BlackTeam "Kosice"]
[TimeControl "40/5400+30:1800+30"]

1. g3 {[%emt 0:00:00]} c5 {[%emt 0:00:21]} 2. Bg2 {[%emt 0:00:00]} Nc6 {[%emt 0:00:10]} 3. e4 {[%emt 0:01:03]} Nf6 {[%emt 0:00:17]} 4. d3 {[%emt 0:02:09]} d6 {[%emt 0:01:11]} 5. Ne2 {[%emt 0:00:47]} g6 {[%emt 0:00:35]} 6. O-O {[%emt 0:00:19]} Bg7 {[%emt 0:00:05]} 7. h3 {[%emt 0:00:16]} O-O {[%emt 0:00:13]} 8. Be3 {[%emt 0:00:11]} Rb8 {[%emt 0:01:30]} 9. c3 {[%emt 0:01:37]} b5 {[%emt 0:02:58]} 10. d4 {[%emt 0:00:15]} cxd4 {[%emt 0:02:24]} 11. cxd4 {[%emt 0:00:09]} Qd7 {[%emt 0:12:53]} 12. Nd2 {[%emt 0:02:24]} a5 {[%emt 0:05:11]} 13. f4 {[%emt 0:00:36]} Bb7 {[%emt 0:11:07]} 14. d5 {[%emt 0:09:41]} Nb4 {[%emt 0:01:35]} 15. Nb3 {[%emt 0:00:11]} Rfc8 {[%emt 0:03:36]} 16. Nbd4 {[%emt 0:17:20]} e5 {[%emt 0:03:07]} 17. dxe6 {[%emt 0:01:32]} fxe6 {[%emt 0:00:25]} 18. Nc3 {[%emt 0:02:19]} e5 {[%emt 0:07:10]} 19. Nde2 {[%emt 0:05:09]} a4 {[%emt 0:14:48]} 20. a3 {[%emt 0:12:04]} Na6 {[%emt 0:01:00]} 21. fxe5 {[%emt 0:06:33]} dxe5 {[%emt 0:00:26]} 22. Qxd7 {[%emt 0:00:44]} Nxd7 {[%emt 0:00:09]} 23. Rad1 {[%emt 0:00:33]} Nac5 {[%emt 0:07:31]} 24. h4 {[%emt 0:05:01]} Nf6 {[%emt 0:01:23]} 25. Bh3 {[%emt 0:07:02]} Rc6 {[%emt 0:00:39]} 26. Nd5 {[%emt 0:00:15]} Kh8 {[%emt 0:02:15]} 27. Nxf6 {[%emt 0:01:12]} Bxf6 {[%emt 0:04:18]} 28. Bxc5 {[%emt 0:00:29]} Rxc5 {[%emt 0:00:17]} 29. Rxf6 {[%emt 0:00:18]} Bxe4 {[%emt 0:00:43]} 30. Nc3 {[%emt 0:01:12]} Bc2 {[%emt 0:00:21]} 31. Rd2 {[%emt 0:04:06]} Bb3 {[%emt 0:00:19]} 32. Ra6 {[%emt 0:03:04]} Bc4 {[%emt 0:05:07]} 33. Ra7 {[%emt 0:00:15]} 1-0